Cogmind - Beta 15 @@@ ROGUE MODE // 2025.09.01 @ 22:03:19 Player: McSaucyNugget Result: Self-destructed Performance ------------- Evolutions (5) 2500 Regions Visited (12) 2400 Robots Destroyed (203) 1015 Value Destroyed (4946) 4946 Prototype IDs (23) 460 Alien Tech Used (0) 0 Bonus (1189) 1189 TOTAL SCORE: 12510 Bonus ------- High Alert Combat Kills 163 Follower Combat Kills 240 Registered with UFD 300 Met Optimus in HQ 500 Friendly Fire -14 Cogmind --------- Core Integrity 891/1000 Matter 247/300 Energy 95/100 System Corruption 4% Temperature Cool (0) Movement Flying (20) Location -5/Factory Parts ------- > --- POWER (1) -------- (None) > --- PROPULSION (5) --- Improved Cesium-ion Thruster Cooled VTOL Module Cooled VTOL Module Nuclear Pulse Array > --- UTILITY (9) ------ Improved Signal Interpreter Transmission Jammer Improved Utility Shielding Hacking Suite Hacking Suite System Shield Authchip [Propulsion] A0-MCA's Component Scanner > --- WEAPON (2) ------- Heavy Phase Cannon Precision Grenade Launcher > --- INVENTORY (5) ---- Cooled VTOL Module Experimental Sensor Array Authchip [Armor] Improved Remote Datajack Makeshift Sword Peak State ------------ > --- POWER ------------ Light Fission Core > --- PROPULSION ------- Improved Cesium-ion Thruster Cooled VTOL Module Cooled VTOL Module Nuclear Pulse Array > --- UTILITY ---------- Transmission Jammer Improved Reaction Control System Improved Utility Shielding Improved Light Armor Plating Hacking Suite Hacking Suite System Shield Authchip [Propulsion] A0-MCA's Component Scanner > --- WEAPON ----------- Heavy Phase Cannon Makeshift Sword > --- INVENTORY -------- Cooled VTOL Module Experimental Sensor Array Authchip [Armor] Precision Grenade Launcher Improved Remote Datajack [Rating: 81] Favorites ----------- Power Reinforced Ion Engine Engine Reinforced Ion Engine Power Core Micro Nuclear Core Propulsion Light Treads Treads Light Treads Wheel Compact Wheel Hover Unit Improved Airjet Flight Unit Cooled VTOL Module Utility Huge Storage Unit Device Improved Heat Sink Storage Huge Storage Unit Processor Targeting Computer Hackware Hacking Suite Protection Hardened Light Armor Plating Weapon Light Assault Rifle Energy Gun Improved EM Shotgun Energy Cannon Plasma Cannon Ballistic Gun Light Assault Rifle Ballistic Cannon Gauss Cannon Launcher Mini Grenade Launcher Special Weapon Mining Laser Impact Weapon Great Maul Slashing Weapon Makeshift Sword Build | -11 -10 -10 -9 -9 -9 -8 -8 -7 -7 -7 -7 -5 ------- Run | Yrd Mat Min Mat Min Exi Min Mat Fac Sto Rec Scr Fac Slots Evolved 10 | . . . 2 . . . 2 2 . . . 4 Power . | . . . . . . . . . . . . . Propulsion 3 | . . . 1 . . . 1 . . . . 1 Utility 7 | . . . 1 . . . 1 2 . . . 3 Weapon . | . . . . . . . . . . . . . Parts Attached 135 | 6 10 4 28 1 . 2 23 18 13 8 3 19 Power 14 | 1 3 . 3 . . . 2 1 1 1 . 2 Engine 10 | 1 3 . 3 . . . 1 1 . 1 . . Core 4 | . . . . . . . 1 . 1 . . 2 Reactor . | . . . . . . . . . . . . . Propulsion 45 | 2 4 1 13 . . . 5 7 8 2 . 3 Treads 20 | 2 . . 9 . . . 5 1 3 . . . Leg . | . . . . . . . . . . . . . Wheel 12 | . 4 1 3 . . . . 1 1 2 . . Hover 2 | . . . . . . . . 1 1 . . . Flight 11 | . . . 1 . . . . 4 3 . . 3 Utility 35 | 1 3 . 2 1 . . 6 4 2 3 2 11 Device 11 | . . . . . . . 3 1 2 2 1 2 Storage 3 | 1 2 . . . . . . . . . . . Processor 3 | . 1 . . . . . . . . . . 2 Hackware 5 | . . . . . . . . 1 . . . 4 Protection 13 | . . . 2 1 . . 3 2 . 1 1 3 Artifact . | . . . . . . . . . . . . . Weapon 41 | 2 . 3 10 . . 2 10 6 2 2 1 3 Energy Gun 9 | . . . 2 . . 2 4 . 1 . . . Energy Cannon 4 | . . . . . . . 1 2 . . . 1 Ballistic Gun 17 | 2 . 2 5 . . . 3 3 . 2 . . Ballistic Cannon 2 | . . . 1 . . . . . . . 1 . Launcher 5 | . . . 2 . . . 1 . 1 . . 1 Special Weapon 1 | . . 1 . . . . . . . . . . Impact Weapon 1 | . . . . . . . 1 . . . . . Slashing Weapon 2 | . . . . . . . . 1 . . . 1 Piercing Weapon . | . . . . . . . . . . . . . Special Melee Weapon . | . . . . . . . . . . . . . Unidentified Prototypes 12 | . . . 4 . . . 3 1 4 . . . Corrupted Parts 1 | . . . . . . . . . . . . 1 System Corruption 3 | . . . . . . . . . . . . 3 Parts Lost 40 | . 6 3 2 1 . 2 8 2 9 4 1 2 Power 6 | . 3 . . . . . . . 1 1 . 1 Propulsion 17 | . 3 1 2 . . 1 4 1 4 1 . . Utility 10 | . . . . 1 . . 3 1 3 . 1 1 Weapon 7 | . . 2 . . . 1 1 . 1 2 . . Highest Loss Streak 3 | . 2 3 2 1 . 1 2 1 3 3 1 2 To Critical Strikes . | . . . . . . . . . . . . . Average Backups 21 | 2 8 20 23 24 24 23 23 23 24 24 25 5 Power 1 | . . 3 2 2 2 2 2 1 1 2 2 . Propulsion 6 | . 3 7 8 10 10 9 6 4 7 7 6 1 Utility 4 | . 2 4 5 3 3 3 3 4 3 5 7 2 Weapon 7 | . 2 5 8 9 9 8 11 10 10 8 7 1 Tool/Special . | . . . . . . . . . . . . . Unused Backups 41 | . . 1 19 . . . 5 1 3 1 2 9 Power 6 | . . . 2 . . . 3 . . . . 1 Propulsion 11 | . . . 7 . . . 1 . 3 . . . Utility 6 | . . . 4 . . . . . . . 1 1 Weapon 15 | . . 1 6 . . . 1 1 . 1 1 4 Tool/Special 3 | . . . . . . . . . . . . 3 Average Slot Usage (%) 93 | . 93 99 96 100 100 99 94 85 91 91 85 84 Engine 8 | . 10 14 10 11 11 11 7 3 2 6 7 . Treads 20 | . 16 . 23 33 33 32 35 27 20 14 . . Wheel 7 | . 10 27 9 . . . . . . 10 23 . Flight 1 | . . . . . . . . . 5 . . 22 Device 8 | . . . . . . . 9 12 20 26 24 10 Storage 9 | . 14 14 11 11 11 11 9 6 7 7 7 . Processor 6 | . 12 14 11 11 11 11 2 . . . . 5 Hackware 1 | . . . . . . . . 2 5 . . 17 Protection 7 | . . . 8 11 11 11 9 11 6 7 7 9 Energy Gun 3 | . . . . . . 13 11 2 5 . . . Ballistic Gun 14 | . 27 27 19 22 22 8 3 10 8 14 7 . Ballistic Cannon 1 | . . . 1 . . . 1 . . . 6 . Peak Build Rating 81 | 6 9 9 21 18 18 20 34 44 50 48 49 81 Average Rating 26 | 4 6 8 16 18 18 18 26 39 45 43 48 70 On Entrance 23 | . 6 9 9 18 18 18 20 34 42 43 48 45 Naked Turns . | . . . . . . . . . . . . . Heaviest Build 125 | 10 85 85 101 101 101 101 108 125 115 105 119 29 Greatest Support 89 | 40 40 16 66 60 60 60 89 89 86 60 60 33 Greatest Overweight (x) 11 | . 5 5 5 1 1 1 1 11 6 6 1 . Average Overweight (x) 1 | . 3 5 2 1 1 1 1 1 2 1 1 . Largest Inventory Capacity 25 | 8 25 25 25 25 25 25 25 25 25 25 25 25 Average Capacity 23 | 6 22 25 25 25 25 25 25 24 25 25 25 5 Most Carried 25 | 4 20 23 25 25 24 24 25 25 25 25 25 25 Average Carried 21 | 2 8 20 23 24 24 23 23 23 24 24 24 4 Final Capacity 25 | 8 25 25 25 25 25 25 25 25 25 25 25 5 Final Carried 25 | 4 20 23 25 24 24 24 25 25 25 25 25 5 Class Distribution -------------------- 61% | Scavenger-Mutant 34% | Mutant 3% | Hacker-Sprinter Dominant Class ---------------- Mutant | -10/Materials Scavenger-Mutant | -10/Mines Mutant | -9/Materials Scavenger-Mutant | -9/Mines Scavenger-Mutant | -9/Exiles Scavenger-Mutant | -8/Mines Scavenger-Mutant | -8/Materials Mutant | -7/Factory Scavenger-Mutant | -7/Storage Scavenger-Mutant | -7/Recycling Scavenger-Mutant | -7/Scraptown Hacker-Sprinter | -5/Factory Resources | -11 -10 -10 -9 -9 -9 -8 -8 -7 -7 -7 -7 -5 ----------- Run | Yrd Mat Min Mat Min Exi Min Mat Fac Sto Rec Scr Fac Matter Collected 4262 | 203 416 70 842 123 . 157 718 496 631 340 46 220 Remotely . | . . . . . . . . . . . . . Salvage Created 7289 | . 892 181 1248 189 . 413 1746 761 1002 692 . 165 Parts 406 | . 52 13 76 6 . 45 105 35 44 22 . 8 Haulers Intercepted 9 | . 1 . 4 . . . 2 1 1 . . . Recyclers Shooed 5 | . 1 . . . . 1 . 1 . 2 . . Parts Field Recycled . | . . . . . . . . . . . . . Retrieved Matter . | . . . . . . . . . . . . . Parts Self-Destructed . | . . . . . . . . . . . . . Prevented . | . . . . . . . . . . . . . Kills | -11 -10 -10 -9 -9 -9 -8 -8 -7 -7 -7 -7 -5 ------- Run | Yrd Mat Min Mat Min Exi Min Mat Fac Sto Rec Scr Fac Combat Hostiles Destroyed 122 | . 20 4 19 5 . 6 36 6 23 2 . 1 Guns 87 | . 20 4 12 5 . 6 17 5 16 2 . . Cannons 8 | . . . 2 . . . 5 1 . . . . AOE 26 | . . . 5 . . . 13 . 7 . . 1 Classes Destroyed 17 | . 8 . 2 1 . 2 2 1 1 . . . Worker 23 | . 3 2 5 1 . 4 4 3 1 . . . Builder 10 | . . . 2 . . 1 6 . . 1 . . Tunneler 7 | . . . . . . 6 . . . . . 1 Hauler 9 | . 1 . 4 . . . 2 1 1 . . . Recycler 21 | . 1 1 2 . . . 1 5 1 9 . 1 Mechanic 3 | . 1 . . . . . 2 . . . . . Operator 5 | . 1 . 1 . . . 2 . 1 . . . Watcher 4 | . 1 . 1 . . . 2 . . . . . Swarmer 29 | . 6 4 . . . 4 10 . 4 . . 1 Grunt 61 | . 14 . 13 4 . . 16 3 11 . . . Brawler 2 | . . . . . . . 2 . . . . . Duelist 3 | . . . . . . . 2 . 1 . . . Protector 1 | . . . . . . . . . 1 . . . Sentry 18 | . . . 6 . . . 6 . 4 2 . . Hunter 4 | . . . . . . 2 . 1 1 . . . Programmer 3 | . . . . . . . . 2 1 . . . Assembled 1 | . . . . 1 . . . . . . . . Best Kill Streak 12 | . 3 2 4 4 . 4 12 4 9 6 . 2 Combat Bots Only 8 | . 3 2 3 4 . 3 5 1 8 1 . 1 Max Kills in Single Turn 5 | . 2 1 2 1 . 1 5 2 5 1 . 2 Gunslinging 1 | . 1 . 1 . . . 1 . . . . . Exploded 5 | . . . 2 . . . 3 . 5 . . 1 Melee . | . . . . . . . . . . . . . Uniques/NPCs Destroyed . | . . . . . . . . . . . . . Combat | -11 -10 -10 -9 -9 -9 -8 -8 -7 -7 -7 -7 -5 -------- Run | Yrd Mat Min Mat Min Exi Min Mat Fac Sto Rec Scr Fac Hostile Shots Fired 839 | . 85 22 93 33 . 21 166 49 223 72 10 65 Missed 260 | . 15 4 28 7 . 2 55 7 81 26 4 31 Hits 579 | . 70 18 65 26 . 19 111 42 142 46 6 34 Melee 3 | . . . . . . . . . 3 . . . Projectile 576 | . 70 18 65 26 . 19 111 42 139 46 6 34 AOE 1 | . . . . . . . . . . . . 1 Critical Strikes 16 | . . . 4 . . . 5 . 3 . . 4 Part Disruptions 1 | . . . . . . . . 1 . . . . Damage Taken 7473 | . 709 209 877 300 . 176 1835 621 1677 345 105 619 Core 942 | . 149 45 133 43 . 18 328 . 72 45 . 109 Absorbed by Shields 116 | . . . . . . . . . . . . 116 Redirected to Shielding 13 | . . . . . . . . . . . . 13 Core Remaining (%) 59 | 100 . 22 . . . 51 40 . . . 83 . Volleys Fired 502 | . 98 24 101 19 . 24 106 37 67 25 . 1 Largest 2 | . 2 2 2 2 . 2 2 2 2 2 . 1 Hottest 117 | . 40 100 100 46 . 90 117 108 103 103 . 36 Shots Fired 969 | . 196 46 198 38 . 48 197 72 124 49 . 1 Gun 880 | . 196 45 174 38 . 48 149 65 116 49 . . Cannon 61 | . . . 20 . . . 34 7 . . . . Launcher 26 | . . . 3 . . . 14 . 8 . . 1 Special 2 | . . 1 1 . . . . . . . . . Kinetic 739 | . 196 45 194 38 . 22 63 65 71 45 . . Thermal 132 | . . 1 1 . . . 74 7 45 4 . . Explosive 26 | . . . 3 . . . 14 . 8 . . 1 Electromagnetic 72 | . . . . . . 26 46 . . . . . Robot Hit Streak 20 | . 13 10 12 20 . 20 18 11 9 13 . 2 Robot Miss Streak 4 | . 3 2 3 1 . 2 4 2 2 4 . . Penetration Max 1 | . . . . . . . . 1 1 1 . . Secondary Targets 11 | . 2 . 1 . . 1 2 . 5 . . . Max Gunslinging Chain 1 | . 1 . 1 . . 1 1 . 1 . . . Shots Hit Robots 684 | . 140 30 142 29 . 35 140 45 83 36 . 4 Core Hits 381 | . 60 16 55 10 . 20 99 22 64 32 . 3 Critical Kills 3 | . 1 . . 1 . . . . 1 . . . Critical Parts Destroyed 6 | . 2 . 1 . . . . 2 1 . . . Critical Strikes 22 | . 3 . 1 1 . . 6 2 9 . . . Burn 12 | . . . . . . . 5 . 7 . . . Destroy 9 | . 3 . 1 1 . . . 2 2 . . . Blast 1 | . . . . . . . 1 . . . . . Melee Attacks 17 | . . . . . . . 1 2 1 . . 13 Impact 2 | . . . . . . . 1 . 1 . . . Slashing 15 | . . . . . . . . 2 . . . 13 Piercing . | . . . . . . . . . . . . . Sneak Attacks 2 | . . . . . . . . . . . . 2 Combat Hostiles . | . . . . . . . . . . . . . Follow-up Attacks . | . . . . . . . . . . . . . Damage Inflicted 13751 | . 1117 246 2041 468 . 610 4290 940 2920 824 9 286 Guns 9353 | . 1117 246 1392 468 . 603 2074 861 1768 824 . . Cannons 907 | . . . 336 . . . 492 79 . . . . Explosions 3288 | . . . 313 . . . 1724 . 1152 . . 99 Melee 187 | . . . . . . . . . . . . 187 Ramming 16 | . . . . . . 7 . . . . 9 . Kinetic 7285 | . 1117 246 1728 468 . 217 858 861 1049 741 . . Thermal 2151 | . . . . . . . 1270 79 719 83 . . Explosive 2958 | . . . 313 . . . 1394 . 1152 . . 99 Electromagnetic 1154 | . . . . . . 386 768 . . . . . Impact . | . . . . . . . . . . . . . Slashing 187 | . . . . . . . . . . . . 187 Piercing . | . . . . . . . . . . . . . Highest Corruption 4 | . . . 1 1 1 1 . 2 3 3 . 4 Average Corruption 1 | . . . 1 1 1 1 . 1 2 3 . 3 Corruption Purged . | . . . . . . . . . . . . . Corruption Blocked . | . . . . . . . . . . . . . Effects 70 | . . . 7 5 3 9 . 14 15 17 . . Message Errors 14 | . . . 1 1 2 1 . 4 3 2 . . Matter Fused 17 | . . . 2 1 1 2 . 3 4 4 . . Heat Flow Errors 9 | . . . 2 . . . . 2 2 3 . . Energy Discharges 5 | . . . 1 . . . . 2 . 2 . . Parts Rejected 1 | . . . . . . . . . 1 . . . Data Loss (minor) 13 | . . . . 2 . 3 . 2 3 3 . . Data Loss (major) 6 | . . . 1 1 . 2 . . . 2 . . Alerts 2 | . . . . . . 1 . 1 . . . . Weapon Failures 3 | . . . . . . . . . 2 1 . . Overload Shots . | . . . . . . . . . . . . . Overflow Damage 31 | . . . . . . . 19 . . . . 12 Projectiles . | . . . . . . . . . . . . . Explosions 19 | . . . . . . . 19 . . . . . Melee 12 | . . . . . . . . . . . . 12 Knockbacks 16 | . . . 8 . . . 8 . . . . . Impact . | . . . . . . . . . . . . . Kinetic 14 | . . . 7 . . . 7 . . . . . Secondary 2 | . . . 1 . . . 1 . . . . . Self-Inflicted Damage 229 | . . . . . . . 225 . . . 4 . Shots 6 | . . . . . . . 6 . . . . . Rammed 2 | . . . . 1 . . . . . . 1 . Targets Rammed 3 | . . . . 1 . 1 . . . . 1 . Kicked . | . . . . . . . . . . . . . Crushed 1 | . . . . . . 1 . . . . . . Highest Temperature 266 | . 18 20 266 214 . 144 219 266 208 167 . . Average Temperature 49 | . 7 9 47 84 . 39 59 55 42 57 . . Received Heat Transfer 2517 | . 306 78 390 138 . . 774 108 573 108 24 18 Siege Activations . | . . . . . . . . . . . . . Martial Activations . | . . . . . . . . . . . . . Shielding Activations . | . . . . . . . . . . . . . Robots Disrupted . | . . . . . . . . . . . . . Combat Hostiles . | . . . . . . . . . . . . . Robots Corrupted 1 | . . . . . . . 1 . . . . . Combat Hostiles . | . . . . . . . . . . . . . Parts Fried 7 | . . . . . . 3 4 . . . . . Impact Corruptions . | . . . . . . . . . . . . . Robots Melted 1 | . . . . . . . 1 . . . . . Combat Hostiles 1 | . . . . . . . 1 . . . . . Parts Melted 11 | . . . . . . . 5 . 5 1 . . Heat Transferred 4732 | . . . . . . . 2708 137 1739 148 . . Parts Sabotaged . | . . . . . . . . . . . . . Parts Stolen . | . . . . . . . . . . . . . Parts Stripped . | . . . . . . . . . . . . . Power Chain Reactions 5 | . . . . . . . 5 . . . . . Alert | -11 -10 -10 -9 -9 -9 -8 -8 -7 -7 -7 -7 -5 ------- Run | Yrd Mat Min Mat Min Exi Min Mat Fac Sto Rec Scr Fac Maximum Alert Level 2 | . 1 . . . . . 2 1 1 . . . Low Security (%) 80 | 100 76 100 100 100 . 100 19 95 58 100 . 100 Level 1 9 | . 23 . . . . . 25 4 41 . . . Level 2 9 | . . . . . . . 55 . . . . . Level 3 . | . . . . . . . . . . . . . Level 4 . | . . . . . . . . . . . . . Level 5 . | . . . . . . . . . . . . . High Security . | . . . . . . . . . . . . . Max Security . | . . . . . . . . . . . . . Peak Influence 546 | . 250 110 178 67 . 115 546 226 300 70 . 173 Initial 226 | . . 54 . 67 . . 4 226 . 70 . . Average 108 | . 140 24 68 12 . 17 355 54 157 10 . 15 Influence Increases 4643 | . 629 246 748 85 . 280 1158 231 809 211 . 246 Destroy 0b10 Robot/C 2580 | . 400 160 420 80 . 120 720 120 500 40 . 20 Destroy 0b10 Robot/NC 415 | . 40 15 75 5 . 55 95 45 25 50 . 10 Destroy Leader 576 | . 94 30 110 . . 30 148 42 122 . . . Allied During Kill 42 | . . 22 6 . . . . . 14 . . . Successful Hack 85 | . 5 18 24 . . . 11 5 . . . 22 Select Force Hacks 240 | . 60 . 60 . . . . . . 120 . . Disable Machine 135 | . . . 15 . . 15 15 . 75 . . 15 Destroy Structure 225 | . . 1 23 . . . 109 4 43 1 . 44 Partial Spotted 45 | . . . . . . . . . . . . 45 Lose Combat Pursuer 300 | . 30 . 15 . . 60 60 15 30 . . 90 Influence Decreases 4498 | . 490 385 574 249 10 267 672 730 628 392 . 101 Entered New Map 595 | . . 85 . 107 10 . 9 273 . 111 . . Time Decay 3227 | . 430 270 534 132 . 267 583 437 252 241 . 81 Lost Part 370 | . 60 30 20 10 . . 80 20 90 40 . 20 Lost Ally 60 | . . . 20 . . . . . 40 . . . Purge Threat 246 | . . . . . . . . . 246 . . . Squads Dispatched 28 | . 7 . 4 . . . 6 2 7 . . 2 Investigation 8 | . 2 . 3 . . . 1 . 1 . . 1 Extermination 4 | . . . . . . . . 2 1 . . 1 Reinforcement 12 | . 5 . 1 . . . 3 . 3 . . . Assault 4 | . . . . . . . 2 . 2 . . . Garrison . | . . . . . . . . . . . . . Intercept . | . . . . . . . . . . . . . Searches Triggered . | . . . . . . . . . . . . . Construction Impeded 2 | . . . . . . . 1 . 1 . . . Haulers Reinforced 1 | . . . . . . . . . 1 . . . Active Scanning Responses . | . . . . . . . . . . . . . Cargo Convoy Interrupts . | . . . . . . . . . . . . . Stealth | -11 -10 -10 -9 -9 -9 -8 -8 -7 -7 -7 -7 -5 --------- Run | Yrd Mat Min Mat Min Exi Min Mat Fac Sto Rec Scr Fac Distress Signals 12 | . 3 . 2 . . . 4 1 1 1 . . Communications Jammed 6 | . . . . . . . . . 6 . . . Distress Signals 4 | . . . . . . . . . 4 . . . Times Spotted 220 | . 35 8 32 5 . 10 62 12 34 2 5 15 Peak Tracking Total 8 | . 5 3 6 3 . 4 7 3 8 1 5 8 Tactical Retreats 12 | . 2 . 1 1 . 2 2 1 1 . . 2 Traps | -11 -10 -10 -9 -9 -9 -8 -8 -7 -7 -7 -7 -5 ------- Run | Yrd Mat Min Mat Min Exi Min Mat Fac Sto Rec Scr Fac Traps Triggered 9 | . 2 . 2 . . . 1 2 . . . 2 Indirectly . | . . . . . . . . . . . . . Trap Hack Attempts . | . . . . . . . . . . . . . Triggered . | . . . . . . . . . . . . . Disarmed . | . . . . . . . . . . . . . Reprogrammed . | . . . . . . . . . . . . . Reused . | . . . . . . . . . . . . . Traps Extracted . | . . . . . . . . . . . . . Installed . | . . . . . . . . . . . . . Triggered . | . . . . . . . . . . . . . Machines | -11 -10 -10 -9 -9 -9 -8 -8 -7 -7 -7 -7 -5 ---------- Run | Yrd Mat Min Mat Min Exi Min Mat Fac Sto Rec Scr Fac Machines Disabled 9 | . . . 1 . . 1 1 . 5 . . 1 Max in Single Turn 1 | . . . 1 . . 1 1 . 1 . . 1 Machines Repaired . | . . . . . . . . . . . . . Machines Dismantled . | . . . . . . . . . . . . . Machines Sabotaged . | . . . . . . . . . . . . . Overloaded Fab Kills . | . . . . . . . . . . . . . Hacking | -11 -10 -10 -9 -9 -9 -8 -8 -7 -7 -7 -7 -5 --------- Run | Yrd Mat Min Mat Min Exi Min Mat Fac Sto Rec Scr Fac Machines Accessed 41 | . 5 1 9 . 1 . 6 5 2 7 1 4 Terminals 27 | . 3 1 7 . . . 6 4 2 2 . 2 Fabricators 1 | . . . . . . . . 1 . . . . Repair Stations . | . . . . . . . . . . . . . Recycling Units 9 | . 2 . 2 . . . . . . 5 . . Scanalyzers 1 | . . . . . . . . . . . . 1 Garrison Access 1 | . . . . . . . . . . . . 1 Total Hacks 102 | . 8 4 29 . 1 . 19 6 7 10 4 14 Successful 59 | . 5 3 18 . 1 . 10 2 5 8 4 3 Failed 42 | . 3 1 10 . . . 9 4 2 2 . 11 Catastrophic 7 | . . 1 . . . . . 3 1 . . 2 Database Lockouts 1 | . . . 1 . . . . . . . . . Manual 66 | . 8 4 22 . . . 14 4 6 5 . 3 Terminals 78 | . 6 4 27 . . . 19 5 7 3 . 7 Fabricators 1 | . . . . . . . . 1 . . . . Repair Stations . | . . . . . . . . . . . . . Recycling Units 11 | . 2 . 2 . . . . . . 7 . . Scanalyzers 4 | . . . . . . . . . . . . 4 Garrison Access 3 | . . . . . . . . . . . . 3 Terminal Hacks 27 | . . 2 7 . 1 . 3 1 4 3 4 2 Record 6 | . . . . . 1 . . . . 1 4 . Part Schematic 2 | . . 2 . . . . . . . . . . Robot Analysis 3 | . . . 2 . . . . . . 1 . . Prototype ID Bank 3 | . . . 2 . . . 1 . . . . . Open Door 1 | . . . . . . . . . 1 . . . Branch Access Points 3 | . . . 1 . . . 1 . . . . 1 Terminal Index 1 | . . . . . . . . . 1 . . . Unreport Threat 2 | . . . . . . . . . 2 . . . Zone Layout 6 | . . . 2 . . . 1 1 . 1 . 1 Fabricator Hacks 1 | . . . . . . . . 1 . . . . Network Status 1 | . . . . . . . . 1 . . . . Repair Station Hacks . | . . . . . . . . . . . . . Recycling Unit Hacks 1 | . . . . . . . . . . 1 . . Retrieve Components 1 | . . . . . . . . . . 1 . . Scanalyzer 1 | . . . . . . . . . . . . 1 Insert Component 1 | . . . . . . . . . . . . 1 Garrison Access Hacks . | . . . . . . . . . . . . . Unauthorized Hacks 29 | . 5 1 11 . . . 7 . 1 4 . . Terminals 21 | . 3 1 9 . . . 7 . 1 . . . Botnet 7 | . 1 . 3 . . . 2 . 1 . . . Skim 14 | . 2 1 6 . . . 5 . . . . . Fabricators . | . . . . . . . . . . . . . Repair Stations . | . . . . . . . . . . . . . Recycling Units 8 | . 2 . 2 . . . . . . 4 . . Tunnel 8 | . 2 . 2 . . . . . . 4 . . Scanalyzers . | . . . . . . . . . . . . . Garrison Access . | . . . . . . . . . . . . . Data Cores Recovered 1 | . . . . . . . 1 . . . . . Used . | . . . . . . . . . . . . . Hacking Detections 30 | . 3 1 6 . . . 6 5 3 2 . 4 Full Trace Events 3 | . . . 1 . . . . . 1 . . 1 Feedback Events . | . . . . . . . . . . . . . Feedback Blocked . | . . . . . . . . . . . . . Robot Schematics Acquired . | . . . . . . . . . . . . . Robots Built . | . . . . . . . . . . . . . Authchips . | . . . . . . . . . . . . . Time . | . . . . . . . . . . . . . Total Robot Build Rating . | . . . . . . . . . . . . . Part Schematics Acquired 2 | . . 2 . . . . . . . . . . Parts Built . | . . . . . . . . . . . . . Authchips . | . . . . . . . . . . . . . Time . | . . . . . . . . . . . . . Total Part Build Rating . | . . . . . . . . . . . . . Parts Repaired . | . . . . . . . . . . . . . Time . | . . . . . . . . . . . . . Parts Recycled . | . . . . . . . . . . . . . Recycled Matter . | . . . . . . . . . . . . . Retrieved Matter . | . . . . . . . . . . . . . Retrieved Components 3 | . . . . . . . . . . 3 . . Parts Scanalyzed 1 | . . . . . . . . . . . . 1 Part Schematics Acquired . | . . . . . . . . . . . . . Parts Damaged 1 | . . . . . . . . . . . . 1 Bothacking | -11 -10 -10 -9 -9 -9 -8 -8 -7 -7 -7 -7 -5 ------------ Run | Yrd Mat Min Mat Min Exi Min Mat Fac Sto Rec Scr Fac Used RIF Installer . | . . . . . . . . . . . . . Robots Hacked . | . . . . . . . . . . . . . Non-combat . | . . . . . . . . . . . . . Combat . | . . . . . . . . . . . . . Robot Hacks Applied . | . . . . . . . . . . . . . Relay Couplers Released . | . . . . . . . . . . . . . Fabnet Peak Effective % . | . . . . . . . . . . . . . Robots Rewired . | . . . . . . . . . . . . . Allies Hacked . | . . . . . . . . . . . . . Hacks Repelled . | . . . . . . . . . . . . . Allies | -11 -10 -10 -9 -9 -9 -8 -8 -7 -7 -7 -7 -5 -------- Run | Yrd Mat Min Mat Min Exi Min Mat Fac Sto Rec Scr Fac Total Allies 5 | . . 3 . . . . . . 2 . . . Largest Group 3 | . . 3 2 . . . . . 2 . . . Highest-Rated Group 69 | . . 69 38 . . . . . 62 . . . Highest-Rated Ally 31 | . . 31 31 . . . . . 31 . . . Total Orders . | . . . . . . . . . . . . . Ally Attacks 42 | . . 8 16 . . . . . 18 . . . Total Damage 547 | . . 104 276 . . . . . 167 . . . Kills 9 | . . 4 2 . . . . . 3 . . . Allies Corrupted . | . . . . . . . . . . . . . Allies Melted . | . . . . . . . . . . . . . Intel | -11 -10 -10 -9 -9 -9 -8 -8 -7 -7 -7 -7 -5 ------- Run | Yrd Mat Min Mat Min Exi Min Mat Fac Sto Rec Scr Fac Active Infowar (turns) 1876 | . . . . . . . 818 . 520 36 . 502 Sensors 394 | . . . . . . . . . . . . 394 Seismic 818 | . . . . . . . 818 . . . . . Jamming 1042 | . . . . . . . . . 520 36 . 486 Robot Analysis Total 3 | . . . 2 . . . . . . 1 . . Derelict Logs Recovered 2 | . . 1 . 1 . . . . . . . . Drone Launches . | . . . . . . . . . . . . . Drone Recoveries . | . . . . . . . . . . . . . Exploration | -11 -10 -10 -9 -9 -9 -8 -8 -7 -7 -7 -7 -5 ------------- Run | Yrd Mat Min Mat Min Exi Min Mat Fac Sto Rec Scr Fac Turns Passed 14955 | 98 1589 1287 2036 1026 324 1329 2208 1370 705 956 1515 512 Spaces Moved 7171 | 57 719 692 847 314 136 522 710 500 182 543 1303 646 Core 7 | 5 . . . . . . . 2 . . . . Treads 3081 | 52 182 . 422 314 136 522 710 456 157 130 . . Legs . | . . . . . . . . . . . . . Wheels 3434 | . 537 692 425 . . . . 39 25 413 1303 . Hover . | . . . . . . . . . . . . . Flight 649 | . . . . . . . . 3 . . . 646 Fastest Speed 20 | 50 130 175 135 240 240 240 240 29 190 115 115 20 Average Speed 172 | 150 169 175 190 240 240 240 240 238 267 158 115 27 Slowest Speed 570 | 160 175 175 240 240 240 240 240 245 570 243 115 28 Overloaded Moves 1 | . . . . . . . . . . . . 1 Propulsion Burnouts . | . . . . . . . . . . . . . Robots Hopped 14 | . . . . . . . . . . . . 14 Potential Cave-ins . | . . . . . . . . . . . . . Cave-ins Triggered . | . . . . . . . . . . . . . Exploration Rate (%) 61 | 4 95 100 63 60 51 99 68 15 41 96 88 17 Regions Visited 12 Branch Regions 7 Pre-discovered Areas 16 | . 2 . 4 . 1 . 4 . . 4 1 . Known Exits Taken 5 | . . . 1 . . 1 1 1 1 . . . Unknown Exits Taken 7 | 1 1 1 . 1 1 . . . . 1 1 . Scrap Searched 9 | . . 1 . 1 . 1 . . . . 6 . Spaces Dug 13 | . . 1 . . . . 1 2 . . . 9 Terrain Destroyed 216 | . . 1 27 . . . 113 3 52 . . 20 Melee 12 | . . . . . . . 1 2 . . . 9 Projectile 5 | . . 1 . . . . 2 1 1 . . . AOE 199 | . . . 27 . . . 110 . 51 . . 11 Terrain Rammed . | . . . . . . . . . . . . . Walls Destroyed . | . . . . . . . . . . . . . Machines Disabled . | . . . . . . . . . . . . . Actions | -11 -10 -10 -9 -9 -9 -8 -8 -7 -7 -7 -7 -5 --------- Run | Yrd Mat Min Mat Min Exi Min Mat Fac Sto Rec Scr Fac Total 8902 | 66 925 729 1108 552 135 551 1022 626 302 599 1324 963 Wait 711 | . 70 2 38 218 . . 130 8 1 9 . 235 Move 7131 | 56 718 691 846 313 135 521 709 499 181 542 1302 618 Hop 14 | . . . . . . . . . . . . 14 Pick Up 146 | 4 19 7 37 . . 2 17 29 9 4 7 11 Fast Attach 76 | 6 8 . 10 . . . 8 13 14 6 2 9 Attach 62 | . 4 3 12 1 . 2 11 6 5 4 . 14 Detach 27 | . 1 . 7 . . . 5 1 2 2 . 9 Swap 60 | . 6 1 14 . . 1 17 8 7 1 1 4 Drop 140 | . 1 1 43 . . . 18 23 15 6 11 22 Fire 502 | . 98 24 101 19 . 24 106 37 67 25 . 1 Melee 17 | . . . . . . . 1 2 1 . . 13 Ram 1 | . . . . . . . . . . . 1 . Kick . | . . . . . . . . . . . . . Crush 2 | . . . . 1 . 1 . . . . . . Escape Stasis 13 | . . . . . . . . . . . . 13 Rewire . | . . . . . . . . . . . . . Trap . | . . . . . . . . . . . . . Miscellaneous . | . . . . . . . . . . . . . Route ------- -11/Scrapyard -10/Materials (discovered 3 exits: *Mat x2 / *Min) -10/Mines (discovered 3 exits: *Mat x2 / [*Sub]) -9/Materials (discovered 4 exits: *Mat x2 / *Min x2) -9/Mines -9/Exiles -8/Mines (discovered 2 exits: *Mat x2) -8/Materials (discovered 3 exits: *Fac x3) -7/Factory (discovered 3 exits: Fac / *Sto / Low) -7/Storage -7/Recycling (discovered 2 exits: *Fac / *Scr) -7/Scraptown (discovered 2 exits: *Fac x2) -5/Factory (discovered 2 exits: Upp x2) History --------- Turn | Location | Event 9 | -11/Scrapyard | Discovered new exit (range 14) 99 | -11/Scrapyard | Entered Materials 306 | -10/Materials | Build established: Mutant 426 | -10/Materials | Discovered new exit (range 13) 599 | -10/Materials | Derelicts attacked the area 691 | -10/Materials | Discovered new exit (range 13) 1000 | -10/Materials | Core integrity fell below 50% 1087 | -10/Materials | Discovered new exit (range 14) 1688 | -10/Materials | Entered Mines 1784 | -10/Mines | Lost 3 parts (1n2w) 1784 | -10/Mines | Learned Materials terminal intel 2042 | -10/Mines | Build established: Scavenger-Mutant 2065 | -10/Mines | Received a Rocket Launcher from a helpful Derelict 2228 | -10/Mines | Found a hidden stash of uninstalled traps 2228 | -10/Mines | Discovered new exit (range 11) 2347 | -10/Mines | Received a Mining Laser from a helpful Derelict 2438 | -10/Mines | Discovered new exit (range 7) 2462 | -10/Mines | Discovered new exit (range 6) 2975 | -10/Mines | Entered Materials 2975 | -9/Materials | Accompanied by 2 allies 2975 | -9/Materials | Evolved 2 slots: Propulsion x1, Utility x1 2975 | -9/Materials | Discovered new exit (range 15) 2976 | -9/Materials | Loaded intel: 12 terminal locations 2980 | -9/Materials | Led the pair of lost Derelicts to an unsafe place 2992 | -9/Materials | Identified exit to Mines 3995 | -9/Materials | Discovered new exit (range 16) 4057 | -9/Materials | Build established: Mutant 4915 | -9/Materials | Learned location of Recycling (-7) 4944 | -9/Materials | Loaded intel: 17 trap records 4951 | -9/Materials | Central database locked down 4963 | -9/Materials | Identified exit to Materials 4972 | -9/Materials | Learned Storage stockpile data 4978 | -9/Materials | Loaded intel: 52 machine locations 5011 | -9/Materials | Entered Mines 5074 | -9/Mines | Deemed a non-threat by the Exiles lab entrance 5074 | -9/Mines | Discovered new exit (range 5) 5112 | -9/Mines | Build established: Scavenger-Mutant 5595 | -9/Mines | Excavation squad dispatched 5595 | -9/Mines | A large section of the Mines collapsed 6037 | -9/Mines | Entered Exiles 6102 | -9/Exiles | Met 8R-AWN 6136 | -9/Exiles | Met EX-HEX 6205 | -9/Exiles | Met EX-BIN 6251 | -9/Exiles | Learned location of Zion (-6) 6335 | -9/Exiles | Discovered new exit (range 14) 6361 | -9/Exiles | Entered Mines 6528 | -8/Mines | Discovered exit to Materials (range 6) 6639 | -8/Mines | Discovered exit to Materials (range 8) 7690 | -8/Mines | Entered Materials 7690 | -8/Materials | Evolved 2 slots: Propulsion x1, Utility x1 8890 | -8/Materials | First assault squad dispatched 8969 | -8/Materials | Core integrity fell below 50% 9317 | -8/Materials | Build established: Mutant 9392 | -8/Materials | Discovered new exit (range 5) 9510 | -8/Materials | Learned 4 Factory zone layouts 9563 | -8/Materials | Learned location of Extension (-6) 9605 | -8/Materials | Learned 4 Factory zone layouts 9638 | -8/Materials | Learned Factory emergency access door positions 9679 | -8/Materials | Identified exit to Factory 9898 | -8/Materials | Entered Factory 9898 | -7/Factory | Evolved 2 slots: Utility x2 9899 | -7/Factory | Identified exit to Storage 9900 | -7/Factory | Identified exit to Lower Caves 9900 | -7/Factory | Identified exit to Factory 11268 | -7/Factory | Entered Storage 11269 | -7/Storage | Identified exit to Recycling 11300 | -7/Storage | Met a pair of Derelict thieves 11446 | -7/Storage | Found Prototype Launcher 11446 | -7/Storage | Identified Rocket Array 11454 | -7/Storage | Destroyed 8 combat bots 11463 | -7/Storage | Lost 3 parts (2n1u) 11810 | -7/Storage | Lost 3 parts (1n1u1w) 11966 | -7/Storage | Used back door to open Recycling access 11973 | -7/Storage | Entered Recycling 12028 | -7/Recycling | Lost 3 parts (1p2w) 12094 | -7/Recycling | Build established: Scavenger-Mutant 12561 | -7/Recycling | Discovered new exit (range 15) 12902 | -7/Recycling | Scanned before Scraplab entrance 12918 | -7/Recycling | Entered Scraplab 12927 | -7/Recycling | Discovered new exit (range 2) 12929 | -7/Recycling | Entered Scraptown 12929 | -7/Scraptown | System corruption cleaned by C-Scrubber 13131 | -7/Scraptown | Heard Great Nut preacher, LISTEN AND RECITE! 13144 | -7/Scraptown | Discovered new exit (range 11) 13286 | -7/Scraptown | Visited Junk Repository 13315 | -7/Scraptown | Visited Red Mages 13374 | -7/Scraptown | Visited Spacefarers 13432 | -7/Scraptown | Visited SPCMW 13532 | -7/Scraptown | Visited Shadow of the Wyrm 13552 | -7/Scraptown | Visited UFD Registry 13552 | -7/Scraptown | Registered with UFD as "Flexiglider" 13798 | -7/Scraptown | Visited A0-MCA Data Center 13805 | -7/Scraptown | Given an A rating by A0-MCA 13810 | -7/Scraptown | Found A0-MCA's Component Scanner 13835 | -7/Scraptown | Visited Abandonware Association 13864 | -7/Scraptown | Learned abandonware demo "SHUTEYE.EXE" 13893 | -7/Scraptown | Visited Curators Association 13959 | -7/Scraptown | Visited Supply Room 13976 | -7/Scraptown | Visited Infowarlord's Domain 13985 | -7/Scraptown | Found Exp. Sensor Array 14035 | -7/Scraptown | Visited Junk Repository 14374 | -7/Scraptown | Met Optimus 14374 | -7/Scraptown | Accepted into 0bPrime 14429 | -7/Scraptown | Civil war broke out across Scraptown 14439 | -7/Scraptown | Discovered new exit (range 5) 14444 | -7/Scraptown | Entered Factory 14444 | -5/Factory | Evolved 4 slots: Propulsion x1, Utility x3 14562 | -5/Factory | Identified exit to Upper Caves 14752 | -5/Factory | Build established: Hacker-Sprinter 14956 | -5/Factory | Self-destructed Last Messages --------------- 14942_ S-27 Virus destroyed. 14942_ T-07 Excavator destroyed. 14944_ Field strength at 61. 14945_ Field strength at 51. 14946_ Field strength at 41. 14947_ Field strength at 36. 14948_ Field strength at 31. 14949_ Field strength at 15. 14950_ Stasis field depleted. 14950_ Triggered Stasis Trap. 14950_ A bubble of rippling energy engulfs the area. 14950_ Field strength at 95. 14950_ Field strength at 90. 14951_ Field strength at 75. 14952_ Field strength at 54. 14953_ Field strength at 39. 14954_ Field strength at 29. 14954_ Imp. Light Armor Plating destroyed. 14955_ Field strength at 17. 14955_ Lgt. Fission Core destroyed. Map ----- +----------------------------------------------------+ | ?????????????#######???## #############????????? | | ????????????????????????# # #???????? | | ????????????????????????+ + #???????? | | ????????????????????????# # #???????? | | ????????????????????????# # #???????? | | ????????????????????????# #?""" """ #???????? | | ????????????????????????# #?""" """ ? #???????? | | ????????????????????????# #??"" """????????????? | | ????????????????????????# #?? ????????????> | | ????????????????????????# #???"?""?????????????? | | ????????????????????????#Ypp#????????????????????? | | ????????????????????????#p #????????????????????? | | ????????????????????????# #????????????????????? | | ????????????????????????# ########?????????????? | | ????????????????????????# *# ??????????????? | | ????????????????????????# !% """" ??????????????? | | ???????????############# = """" "?????????????? | | ???????????# """" "?????????????? | | ???????????# % """" "?????????????? | | ???????????# * ??????????? | | ???????????# """" """"??????????? | | ???????????# """ # """" """???????????? | | ???????????# """ # s# """" ""????????????? | | ???????????#"" """ # # """" ""????????????? | | ???????????#"" # # ????????????????? | | ???????????#G """ #@ ^# !?????????????????? | | ???????????#"" """ # ####?????????????????? | | ???????????#"" """ # #????????????????????? | | ???????????# # #????????????????????? | | ???????????############## #????????????????????? | | ????????????????????????# #????????????????????? | | ????????????????????????# #????????????????????? | | ????????????????????????+ +????????????????????? | | ????????????????????????# #????????????????????? | | ????????????????????????? #????????????????????? | | ????????????????????????? #????????????????????? | | ????????????????????????? #????????????????????? | | ????????????????????????? ????????????????????? | | ????????????????????????? ????????????????????? | | ????????????????????????? ????????????????????? | | ?????????????????????????## ?????????????????????? | | ?????????????????????????????????????????????????? | | ?????????????????????????????????????????????????? | | ?????????????????????????????????????????????????? | | ?????????????????????????????????????????????????? | | ?????????????????????????????????????????????????? | | ?????????????????????????????????????????????????? | | ?????????????????????????????????????????????????? | | ?????????????????????????????????????????????????? | | | +----------------------------------------------------+ Best States ------------- Heat Dissipation 76 Energy Generation 18 Energy Capacity 290 Matter Stores 300 Matter Capacity 300 Sight Range 16 Robot Scan Range 20 Terrain Scan Density 10 Jamming Range 12 Armor Coverage 825 Core Shielding 20 Utility Shielding 66 Weapon Cycling 15 Evasion (%) 74 Targeting Accuracy 5 Recoil Reduction 4 Offensive Hacking 20 Defensive Hacking 10 Authchip Count 2 Item Schematics ----------------- Lrg. Storage Unit | -10/Mines | Hacked Hcp. Storage Unit | -10/Mines | Hacked Robot Schematics ------------------ None Fabricated ------------ Nothing Repaired ---------- Nothing Alien Tech Used ----------------- None Achievements -------------- None Challenges ------------ None Game ------ Seed ZhirovShadingPenetrator Manual? 0 Play Time 01:22:47 Cumulative 192.8 hours Start 2025.08.31 @ 22:57:01 End 2025.09.01 @ 22:03:19 Sessions 7 Manual Loads 0 Difficulty Rogue Special Mode None Game No. 89 Rogue 89 Adventurer 0 Explorer 0 Win Type - Total 18 Types 6/2/4/1/1/0/0/1/1/2 Lore% 73 Gallery% 72 Achievement% 67 Wizard Run 0 Options --------- Layout 0 ASCII 0 Keyboard 1 Movement Vi Keybinds 0 Fullscreen 2 Font 18/SmallcapsGlow Map View 76x50 Zoom Use 0% Tactical HUD 1 Map Filters NONE Filters NONE Steam 1 RUN: 9c97665c-763a-4885-89b1-2fd50c745597